bitfinex/quotes_ETHUSD_20250215
["timestamp","ask_amount","ask_price","bid_price","bid_amount"]
[1739578169404,5.818,2722.1,2721.4,0.734926]
[1739578169405,0.768,2722.7,2721.9,3.09193835]
[1739578169710,0.768,2722.7,2722.5,3.67301]
[1739578170010,1.034,2723.0,2722.5,3.67301]
[1739578170197,6.058,2723.3,2722.5,3.09193835]
[1739578170374,6.058,2723.3,2723.0,3.6723]
[1739578170573,6.058,2723.3,2722.8,3.67261]
[1739578170774,6.058,2723.3,2723.0,3.67238]
[1739578171099,0.768,2723.3,2723.1,3.67219]
[1739578171411,1.21195396,2723.6,2722.8,3.09193835]
[1739578171413,1.97995396,2723.6,2723.2,3.67206]
[1739578171578,0.04590295,2723.5,2723.0,4.4549]
[1739578171783,0.04590295,2723.5,2723.1,3.67219]
[1739578172209,0.04590295,2723.5,2723.0,3.6723]
[1739578172210,1.97995396,2723.6,2723.2,3.67213]
[1739578172409,1.97995396,2723.6,2723.3,3.67199]
[1739578172771,1.97995396,2723.6,2723.1,3.6722]
[1739578173076,0.04590379,2723.5,2723.0,3.67241]
[1739578173387,0.04590379,2723.5,2723.0,7.34473]
[1739578173589,0.04590379,2723.5,2723.0,7.34463]
[1739578173841,0.04590379,2723.5,2723.0,3.67231]
[1739578174528,0.04590379,2723.5,2722.8,3.6726]
[1739578174742,3.71773379,2723.5,2722.9,3.67251]
[1739578175031,7.38960379,2723.5,2722.9,3.67251]
[1739578175232,3.67192,2723.4,2722.9,3.67251]
[1739578175788,3.71773379,2723.5,2722.7,3.67274]
[1739578175789,3.67209,2723.3,2722.7,3.67274]
[1739578176079,3.67209,2723.3,2722.6,3.67288]
[1739578176284,3.67222,2723.2,2722.6,3.67287]
[1739578176511,3.67222,2723.2,2722.7,3.67281]
[1739578176717,3.71800079,2723.3,2722.7,3.67281]
[1739578177232,3.67224,2723.2,2722.6,3.67287]
[1739578177436,3.71826077,2723.1,2722.5,3.67309]
[1739578177734,9.00826077,2723.1,2722.4,7.34631]
[1739578177939,3.67244,2723.0,2722.5,3.67306]
[1739578178093,0.04591386,2722.9,2722.5,3.67306]
[1739578178599,8.96235,2723.1,2722.6,3.67293]
[1739578179745,0.045913,2723.0,2722.6,3.67293]
[1739578180020,5.29,2723.1,2722.8,3.67255]
[1739578180319,5.29,2723.1,2723.0,3.67242]
[1739578183194,5.29,2723.6,2723.3,3.67189]
[1739578184532,5.29,2723.6,2723.5,3.67174]
[1739578185223,0.7669,2723.8,2723.1,3.09193835]
[1739578185390,0.7669,2723.8,2723.0,3.67237]
[1739578185391,5.29,2723.9,2723.7,3.67137]
[1739578186106,0.04589502,2723.8,2723.5,3.67171]
[1739578186720,0.04589502,2723.8,2723.3,3.67191]
[1739578186721,3.71723502,2723.8,2723.3,3.67191]
[1739578186913,3.71723502,2723.8,2722.9,3.67249]
[1739578186914,4.43848,2723.7,2722.9,3.67245]
[1739578187117,3.67176,2723.5,2723.0,3.67235]
[1739578187313,4.48384151,2723.7,2723.2,3.67206]
[1739578187314,4.43847,2723.7,2723.2,3.67206]
[1739578187723,4.43847,2723.7,2723.3,3.67194]
[1739578187724,0.7669,2723.7,2723.3,3.67194]
[1739578187909,0.7669,2723.7,2723.5,3.67167]
[1739578188702,0.7669,2723.7,2723.5,3.67166]
[1739578188914,0.7669,2723.7,2723.4,3.67186]
[1739578189109,0.04589911,2723.6,2723.4,3.67186]
[1739578189616,0.7669,2723.7,2723.4,3.67186]
[1739578189938,0.0458991,2723.6,2722.8,3.89343835]
[1739578190142,0.0458991,2723.6,2723.3,3.67195]
[1739578190310,0.0458991,2723.6,2723.3,7.3439]
[1739578190636,0.0458991,2723.6,2722.9,4.06187384]
[1739578190850,0.0458991,2723.6,2723.3,3.672]
[1739578191197,0.7669,2723.7,2723.4,3.67182]
[1739578192240,0.04589909,2723.6,2723.4,3.67182]
[1739578192534,0.7669,2723.7,2723.5,3.67164]
[1739578193301,0.7669,2723.7,2723.5,3.67162]
[1739578193526,0.7669,2723.7,2723.4,3.67181]
[1739578193527,0.81279824,2723.7,2723.4,3.67181]
[1739578194007,0.7669,2723.7,2723.4,3.67181]
[1739578194313,0.04589907,2723.6,2723.4,3.67181]
[1739578194514,0.7669,2723.7,2723.4,3.67181]
[1739578194697,0.7669,2723.7,2723.4,3.6718]
[1739578195203,0.04589907,2723.6,2723.4,3.6718]
[1739578195738,0.7669,2723.7,2723.5,3.67168]
[1739578195936,0.7669,2723.7,2723.4,3.67187]
[1739578196530,0.7669,2723.7,2723.4,3.67178]
[1739578196733,0.7669,2723.7,2723.5,3.67172]
[1739578197042,0.7669,2723.7,2723.3,3.672]
[1739578197213,0.7669,2723.7,2723.4,3.67186]
[1739578198740,0.04589862,2723.6,2723.1,3.67217]
[1739578198914,5.29,2723.9,2723.5,3.67166]
[1739578199237,5.29,2723.9,2723.7,3.67147]
[1739578199643,5.29,2723.9,2723.8,3.67134]
[1739578200748,0.7843,2724.5,2724.1,3.67089]
[1739578201046,6.12018706,2724.5,2724.1,3.67086]
[1739578201207,9.79060706,2724.5,2724.1,3.67086]
[1739578201543,3.67054,2724.4,2723.9,3.67111]
[1739578201844,0.04588751,2724.3,2723.9,3.67111]
[1739578202033,3.67054,2724.4,2723.9,3.67111]
[1739578202420,0.04589033,2724.3,2723.7,6.76332835]
[1739578202622,3.71662033,2724.3,2723.8,3.67133]
[1739578202832,0.7843,2724.0,2723.4,0.8201]
[1739578203006,3.71716439,2723.9,2723.4,3.67177]
[1739578203222,9.00716439,2723.9,2723.4,3.67177]
[1739578203556,8.96127,2723.9,2723.2,3.67202]
[1739578203854,5.29,2723.9,2723.5,3.67167]
[1739578204030,5.29,2723.9,2723.4,3.67179]
[1739578204228,8.9612,2723.9,2723.4,3.67179]
[1739578204556,5.29,2723.9,2723.6,3.6715]
[1739578204949,5.29,2723.9,2723.8,3.67134]
[1739578206526,4.45498,2724.3,2723.7,4.49155]
[1739578206527,0.7843,2724.3,2723.9,3.6711]
[1739578206724,6.3403,2724.6,2723.7,3.91203835]
[1739578206957,10.01056,2724.6,2724.1,3.67086]
[1739578207456,10.01056,2724.6,2723.9,3.67112]
[1739578207457,3.67066,2724.4,2723.9,3.67112]
[1739578207659,0.04588779,2724.3,2723.9,3.67112]
[1739578207825,3.71655779,2724.3,2723.8,3.67126]
[1739578208249,3.67067,2724.3,2723.8,3.67126]
[1739578208568,4.4553,2724.1,2723.6,3.6715]
[1739578208856,3.67116,2724.0,2723.4,3.67188]
[1739578209023,5.29,2723.9,2723.5,3.67166]
[1739578209425,8.96121,2723.9,2723.5,3.67166]
[1739578210773,8.96121,2723.9,2723.4,3.67188]
[1739578210958,8.96121,2723.9,2723.0,6.67235]
[1739578210959,3.67181,2723.5,2723.0,3.67241]
[1739578211167,3.67202,2723.3,2722.9,3.67244]
[1739578211348,3.7180564,2723.2,2722.7,4.47143]
[1739578211552,4.44928,2723.1,2722.4,0.7987]
[1739578211741,0.04590895,2723.0,2722.5,3.673]
[1739578212140,0.04590895,2723.0,2722.6,3.67285]
[1739578212637,0.04590895,2723.0,2722.5,3.673]
[1739578212842,0.04590895,2723.0,2722.5,3.67297]
[1739578213681,0.04590895,2723.0,2722.6,3.67287]
[1739578214170,0.04590895,2723.0,2722.6,3.67295]
[1739578214408,3.71832895,2723.0,2722.6,3.67295]
[1739578214558,3.67267,2722.9,2722.3,3.67329]
[1739578214760,0.04591285,2722.8,2722.3,3.67329]
[1739578214959,0.777,2722.6,2722.2,3.67338]
[1739578215154,0.04591605,2722.5,2722.2,3.67338]
[1739578216288,0.777,2722.6,2722.3,3.67327]
[1739578216774,0.777,2722.6,2722.2,3.67338]
[1739578216984,0.04591606,2722.5,2722.0,3.67369]
[1739578217164,0.04591606,2722.5,2722.1,3.67363]
[1739578217972,0.04591606,2722.5,2721.9,7.56453835]
[1739578217973,0.777,2722.6,2722.3,3.67328]
[1739578218182,3.67284,2722.7,2722.1,3.67358]
[1739578218493,3.71889786,2722.6,2722.1,3.67358]
[1739578218653,7.39196786,2722.6,2722.1,3.67358]
[1739578218852,5.29,2722.6,2722.1,3.67358]
[1739578219054,5.29,2722.6,2722.2,3.67349]
[1739578219252,3.67309,2722.5,2722.0,3.6737]
[1739578219770,0.777,2722.4,2721.9,6.76573835]
[1739578219975,0.777,2722.4,2722.1,3.67356]
[1739578222089,5.29,2722.6,2722.4,3.67311]
[1739578222318,0.777,2723.5,2722.9,3.67255]
[1739578222456,0.777,2723.5,2723.1,3.6722]
[1739578222815,5.816,2723.6,2723.3,3.672]
[1739578223015,5.816,2723.6,2723.5,3.67174]
[1739578223190,0.04589504,2724.0,2723.4,6.76380835]
[1739578223490,0.04589504,2724.0,2723.6,7.34306]
[1739578223667,0.04589504,2724.0,2723.6,3.67153]
[1739578223863,0.777,2724.1,2723.8,7.34259]
[1739578224077,0.777,2724.1,2723.6,3.67153]
[1739578224417,0.7402864,2724.5,2723.8,3.67133]
[1739578224598,3.67028,2724.6,2723.8,3.67133]
[1739578224599,0.79,2724.4,2723.8,3.67133]
[1739578224951,0.79,2724.4,2724.0,3.67105]
[1739578225353,0.79,2724.4,2724.0,7.34201]
[1739578225612,3.67028,2724.6,2724.0,3.67096]
[1739578225893,0.79,2724.8,2724.2,3.67076]
[1739578226064,0.74731149,2725.0,2724.5,3.67038]
[1739578226252,0.74731149,2725.0,2724.6,3.67026]
[1739578226687,0.74731149,2725.0,2724.4,3.67044]
[1739578226857,0.79,2725.1,2724.4,3.67044]
[1739578226858,0.79,2725.1,2724.6,3.67015]
[1739578227059,0.79,2725.1,2724.6,7.3403]
[1739578227254,0.79,2725.1,2724.7,3.67012]
[1739578227650,0.79,2725.1,2724.8,3.66998]
[1739578227856,6.0366506,2725.5,2724.9,4.44903]
[1739578228085,3.66927,2725.4,2724.9,0.7793]
[1739578228293,3.66927,2725.4,2724.8,3.66998]
[1739578228693,3.71514208,2725.4,2724.7,3.67006]
[1739578229060,3.66927,2725.4,2724.8,3.66998]
[1739578229687,3.66942,2725.3,2724.6,7.54139835]
[1739578229889,0.04587207,2725.2,2724.8,3.66997]
[1739578230610,0.04587207,2725.2,2724.6,8.36316197]
[1739578230817,3.71536207,2725.2,2724.6,8.36316197]
[1739578231285,0.79,2725.1,2724.4,3.67052]
[1739578231519,3.67007,2724.8,2724.2,0.7793]
[1739578231825,3.67007,2724.8,2724.1,4.115956]
[1739578232186,3.67016,2724.7,2724.1,4.115956]
[1739578232384,3.67016,2724.7,2724.1,4.115886]
[1739578232683,0.0458825,2724.7,2724.2,3.67078]
[1739578232884,0.07606835,2724.6,2724.2,3.67078]
[1739578233083,3.67007,2724.8,2724.1,4.115846]
[1739578233297,4.53647835,2724.5,2724.0,3.09193835]
[1739578233530,0.04588426,2724.4,2723.9,4.45042]
[1739578233736,3.67074,2724.3,2723.9,0.7793]
[1739578234193,0.07606835,2724.2,2723.9,4.45049]
[1739578234387,4.46051,2724.5,2723.8,3.6713]
[1739578234638,3.67058,2724.4,2723.8,3.6713]
[1739578234950,3.74664835,2724.4,2723.8,3.6713]
[1739578235107,3.6708,2724.2,2723.7,6.76329835]
[1739578235312,3.6708,2724.2,2723.7,3.09193835]
[1739578235648,0.07606835,2724.1,2723.7,6.76339835]
[1739578237227,7.34123,2724.4,2723.8,3.67132]
[1739578237425,0.07606835,2724.0,2723.8,5.09272184]
[1739578237610,0.79,2724.5,2723.7,3.09193835]
[1739578237814,0.07606835,2723.9,2723.6,3.0]
[1739578238016,3.67103,2724.1,2723.6,3.0]
[1739578238245,0.07606835,2723.8,2723.6,3.0]
[1739578238544,7.34205,2724.1,2723.6,3.0]
[1739578239027,0.07606835,2724.0,2723.6,3.0]
[1739578239518,0.07606835,2724.0,2723.6,6.67156]
[1739578240217,8.96073,2724.3,2723.7,3.67136]
[1739578240218,3.6709,2724.2,2723.7,3.67136]
[1739578240417,0.07606835,2723.9,2723.7,3.67136]
[1739578240615,3.67094,2724.1,2723.6,7.64794984]
[1739578240824,0.07606835,2723.8,2723.6,7.64794984]
[1739578241005,3.67094,2724.1,2723.6,3.97634984]
[1739578241212,0.07606835,2723.7,2723.6,3.0]
[1739578241535,3.67094,2724.1,2723.6,3.0]
[1739578241708,0.07606835,2723.7,2723.6,6.67159]
[1739578241923,3.67094,2724.1,2723.6,6.67159]
[1739578242108,3.67094,2724.1,2723.4,6.76379835]
[1739578242109,0.07606835,2723.7,2723.4,6.76379835]
[1739578242299,3.67127,2723.9,2723.4,8.18531219]
[1739578242495,0.07606835,2723.6,2723.4,3.67186]
[1739578242723,3.67137,2723.8,2723.4,3.67186]
[1739578242922,0.07585656,2723.5,2723.4,3.67186]
[1739578243128,8.96127,2723.9,2723.4,3.67186]
[1739578243333,0.07585656,2723.5,2723.4,3.67186]
[1739578243522,12.63255,2723.9,2723.4,3.67186]
[1739578243720,0.07585656,2723.5,2723.4,3.67186]
[1739578243901,5.29,2723.9,2723.4,7.41125443]
[1739578244101,0.07585656,2723.5,2723.4,7.41125443]
[1739578244600,8.96122,2723.9,2723.4,7.41125443]
[1739578244833,0.07585656,2723.8,2723.4,10.43548835]
[1739578245499,0.07585656,2723.8,2723.5,3.67174]
[1739578245831,0.07585656,2723.8,2723.5,3.67168]
[1739578246194,0.07585656,2723.8,2723.4,6.76370835]
[1739578246503,0.07585656,2723.8,2723.4,3.67177]
[1739578246806,0.07585656,2723.8,2723.5,3.67166]
[1739578247017,0.07585656,2723.8,2723.5,3.67167]
[1739578247432,0.07585656,2723.8,2723.4,4.406132]
[1739578248138,3.74719656,2723.8,2723.4,4.406132]
[1739578248645,0.04589391,2723.7,2723.1,0.8168]
[1739578248798,4.42793,2723.5,2722.8,3.90873835]
[1739578249002,0.12175765,2723.4,2723.0,3.67235]
[1739578249235,0.07585656,2723.4,2723.2,3.67208]
[1739578249451,0.07585656,2723.4,2723.3,4.48881]
[1739578249638,5.29,2723.8,2723.4,3.67185]
[1739578249930,0.07585656,2723.7,2723.4,3.67185]
[1739578250334,5.29,2723.8,2723.5,3.67168]
[1739578250504,0.07585656,2723.6,2723.5,3.67168]
[1739578250698,5.29,2723.8,2723.5,3.67168]
[1739578250898,0.07585656,2723.6,2723.5,3.67168]
[1739578251099,5.29,2723.8,2723.6,3.6716]
[1739578251338,4.42671,2724.4,2723.9,3.67113]
[1739578251503,3.67068,2724.3,2723.9,3.67113]
[1739578251838,3.67068,2724.3,2723.8,0.8168]
[1739578251839,3.67087,2724.2,2723.8,0.8168]
[1739578252025,6.0461,2724.4,2723.5,7.3433]
[1739578252026,3.71693982,2724.1,2723.5,7.3433]
[1739578252224,0.7561,2723.8,2723.5,1.12520384]
[1739578252427,0.7561,2723.8,2723.4,3.67182]
[1739578252428,0.7561,2723.8,2723.4,3.67181]
[1739578252624,0.80199537,2723.8,2723.2,0.8168]
[1739578252804,3.67154,2723.7,2723.2,4.48894]
[1739578253723,3.67176,2723.5,2723.0,4.79770683]
[1739578253929,3.672,2723.4,2722.9,4.49675]
[1739578254543,3.67188,2723.4,2723.0,3.67241]
[1739578254714,0.04590063,2723.3,2722.9,0.8242]
[1739578255040,4.46844,2723.3,2722.8,6.76451835]
[1739578255542,0.7964,2723.3,2722.9,3.67255]
[1739578255751,0.07512226,2723.2,2722.9,3.67255]
[1739578256048,0.7964,2723.3,2722.9,3.67255]
[1739578256344,0.07511755,2723.2,2722.9,3.67255]
[1739578256655,0.7964,2723.3,2722.9,3.67255]
[1739578256816,0.07511755,2723.2,2723.0,3.67236]
[1739578257148,4.46815,2723.5,2723.0,3.67233]
[1739578257335,4.46815,2723.5,2723.1,3.67228]
[1739578257527,4.46815,2723.5,2723.0,3.67238]
[1739578258255,8.13998,2723.5,2723.0,3.67238]
[1739578258661,3.67194,2723.4,2722.9,3.67254]
[1739578258974,3.67222,2723.2,2722.6,3.67282]
[1739578259316,3.67222,2723.2,2722.8,3.67264]
[1739578259968,3.67201,2723.3,2722.8,3.67261]
[1739578260545,0.04590595,2723.2,2722.8,3.67261]
[1739578260722,4.46823,2723.5,2722.9,3.67255]
[1739578260941,4.46823,2723.5,2723.0,3.67235]
[1739578261845,3.6719,2723.4,2723.0,3.67235]
[1739578262039,4.46815,2723.5,2723.0,3.67233]
[1739578262245,8.96157,2723.7,2723.2,4.49622]
[1739578262446,5.29,2723.7,2723.2,4.49622]
[1739578262620,5.29,2723.7,2723.2,4.945842]
[1739578262954,5.29,2723.7,2723.2,1.273822]
[1739578263160,0.7964,2723.4,2722.8,6.76453835]
[1739578263330,0.04590373,2723.3,2722.3,1.34785232]
[1739578263531,4.46932,2722.7,2722.2,3.67347]
[1739578263749,4.5152325,2722.7,2722.2,3.67347]
[1739578264054,4.51521305,2722.7,2722.2,3.67349]
[1739578264657,0.84231305,2722.7,2722.3,3.67335]
[1739578264955,4.51514305,2722.7,2722.3,3.67335]
[1739578265131,3.67303,2722.6,2722.1,3.67351]
[1739578265330,3.67325,2722.4,2721.9,3.67387]
[1739578265536,3.67325,2722.4,2721.9,7.34769]
[1739578265748,3.67325,2722.4,2721.9,3.67382]
[1739578265944,0.04591691,2722.5,2722.0,3.67371]
[1739578266324,3.71900691,2722.5,2722.0,3.67371]
[1739578266559,3.71900691,2722.5,2722.0,3.67374]
[1739578266770,3.67337,2722.3,2721.9,0.817213]
[1739578266941,3.67323,2722.4,2721.9,4.491103]
[1739578267262,3.67323,2722.4,2721.9,8.164883]
[1739578267458,7.39198824,2722.6,2722.0,3.67374]
[1739578267762,3.67321,2722.5,2722.0,3.67376]
[1739578267924,0.7964,2722.7,2722.1,3.67362]
[1739578268130,0.04591817,2722.6,2722.1,3.67362]
[1739578268330,3.71887817,2722.6,2722.1,3.67362]
[1739578268661,3.67329,2722.4,2721.8,3.67403]
[1739578268835,3.67318,2722.5,2721.9,3.67383]
[1739578269039,3.67318,2722.5,2722.0,3.67375]
[1739578269632,3.67319,2722.5,2722.0,3.67375]
[1739578269827,3.67305,2722.6,2721.7,3.67407]
[1739578270063,3.67315,2722.5,2721.9,3.6738]
[1739578270265,4.46929,2722.7,2721.7,3.67417]
[1739578270437,3.74747113,2722.6,2722.1,3.67362]
[1739578270642,0.04591818,2722.5,2722.1,3.67362]
[1739578271159,0.07449113,2722.4,2722.1,3.67362]
[1739578271361,0.07449113,2722.4,2722.0,3.67376]
[1739578271568,3.74772113,2722.4,2722.0,3.67376]
[1739578271865,0.07449113,2722.4,2722.3,3.67336]
[1739578272048,6.1092,2723.0,2722.6,3.6729]
[1739578272249,0.07449113,2722.9,2722.6,3.6729]
[1739578272779,0.07449113,2722.9,2722.5,3.09193835]
[1739578272944,0.07449113,2722.9,2722.8,3.67268]
[1739578273127,0.8192,2723.3,2722.8,3.67268]
[1739578273475,4.49124,2723.3,2722.8,3.67268]
[1739578273768,0.0741237,2723.2,2722.8,3.67268]
[1739578274063,4.49124,2723.3,2722.8,3.67268]
[1739578274268,0.0741237,2723.2,2722.8,3.67268]
[1739578274513,4.49124,2723.3,2722.8,3.67268]
[1739578274631,0.0741237,2723.2,2722.8,3.67268]
[1739578274832,4.49124,2723.3,2722.8,3.67268]
[1739578275126,0.0743781,2723.2,2722.8,3.67268]
[1739578275559,4.49124,2723.3,2722.8,0.84572138]
[1739578275560,0.8192,2723.3,2722.8,0.84572138]
[1739578275771,0.0743781,2723.1,2723.0,3.6723]
[1739578275954,0.07438752,2723.2,2723.1,3.67228]
[1739578276285,0.86509931,2723.6,2723.2,3.67214]
[1739578276449,0.86509931,2723.6,2723.1,3.67228]
[1739578276634,0.86509931,2723.6,2723.2,3.67214]
[1739578276834,0.8192,2723.6,2723.2,3.67214]
[1739578277237,6.1092,2723.9,2723.3,0.8024]
[1739578277476,5.29,2723.9,2723.7,3.67139]
[1739578277764,0.8192,2724.1,2723.7,3.67139]
[1739578277952,3.67073,2724.3,2723.8,3.67131]
[1739578278159,6.6352,2724.4,2723.9,3.67117]
[1739578278341,6.6352,2724.4,2723.8,0.8024]
[1739578278669,5.816,2724.4,2724.1,3.67084]
[1739578278867,5.816,2724.4,2724.3,3.67066]
[1739578279345,5.816,2724.4,2724.1,3.67084]
[1739578279544,5.816,2724.4,2724.0,3.67098]
[1739578279740,5.816,2724.4,2723.9,3.67114]
[1739578279946,5.816,2724.4,2724.2,3.67071]
[1739578281964,5.816,2724.4,2724.1,3.67091]
[1739578282269,5.816,2724.4,2723.9,4.15740738]
[1739578282270,5.816,2724.4,2724.3,3.67066]
[1739578282963,4.48913,2724.9,2724.3,3.67066]
[1739578283373,8.15906,2724.9,2724.3,3.67066]
[1739578284058,3.66999,2724.8,2724.2,3.67071]
[1739578284454,3.66999,2724.8,2724.3,3.67063]
[1739578285371,4.48913,2724.9,2724.4,3.6705]
[1739578285577,0.07285371,2724.7,2724.4,3.6705]
[1739578285797,4.48913,2724.9,2724.4,3.6705]
[1739578285938,0.07285371,2724.6,2724.5,3.67039]
[1739578286137,6.00804321,2725.0,2724.5,3.67039]
[1739578286342,0.07285371,2724.6,2724.5,3.67039]
[1739578286565,6.00804321,2725.0,2724.5,3.67037]
[1739578286842,6.00804321,2725.0,2724.6,3.67019]
[1739578287070,0.07285371,2724.9,2724.6,3.67019]
[1739578287236,0.07285371,2724.9,2724.5,3.67037]
[1739578287440,0.07285371,2724.9,2724.6,3.67026]
[1739578287674,0.07285371,2724.9,2724.5,4.117647]
[1739578287967,0.07285371,2724.9,2724.6,3.67023]
[1739578288172,3.67003,2724.8,2724.3,4.47293]
[1739578288380,3.67003,2724.8,2724.1,4.5650253]
[1739578288581,0.04587541,2724.9,2724.2,0.45650253]
[1739578288785,0.04587541,2724.9,2724.5,3.67032]
[1739578288982,0.07285371,2724.8,2724.5,3.67032]
[1739578289336,0.04587537,2724.9,2724.1,4.42586]
[1739578289574,0.07285371,2724.7,2724.5,3.67031]
[1739578289778,0.07349983,2724.8,2724.5,3.67031]
[1739578289979,8.95979,2725.0,2724.5,3.67031]
[1739578290187,0.07349983,2724.7,2724.5,3.67031]
[1739578290404,3.66988,2724.9,2724.5,3.67031]
[1739578290719,3.66988,2724.9,2724.4,4.4255]
[1739578290923,0.11935398,2724.8,2724.4,0.755]
[1739578291205,0.8219,2724.6,2724.1,4.42587]
[1739578291560,0.0735234,2724.5,2724.1,4.42587]
[1739578291976,0.0735234,2724.5,2724.1,8.09674]
[1739578292172,3.67057,2724.4,2723.8,1.14443384]
[1739578292373,3.71662349,2724.3,2723.8,4.42632]
[1739578292578,0.07351869,2724.3,2723.8,4.42624]
[1739578292781,0.07351869,2724.3,2723.8,0.755]
[1739578293081,3.74418869,2724.3,2723.9,3.6712]
[1739578293309,3.74418869,2724.3,2723.6,3.67159]
[1739578293310,3.67082,2724.2,2723.6,3.67159]
[1739578293510,0.89528667,2724.1,2723.6,7.34311]
[1739578293667,0.07338667,2724.1,2723.7,3.67147]
[1739578293866,3.67081,2724.2,2723.7,3.67147]
[1739578294084,0.07076252,2724.1,2723.7,3.67147]
[1739578294383,3.74171252,2724.1,2723.6,0.809811]
[1739578294584,3.67107,2724.0,2723.6,0.809811]
[1739578295106,0.07064463,2723.9,2723.6,0.809811]
[1739578296191,3.74191463,2723.9,2723.6,0.809811]
[1739578296382,0.07064463,2723.9,2723.5,4.42662]
[1739578296578,0.07064463,2723.9,2723.6,3.67154]
[1739578296781,0.07064463,2723.9,2723.7,3.67139]
[1739578296980,3.67083,2724.2,2723.8,3.67133]
[1739578297201,8.96067,2724.3,2723.8,3.67133]
[1739578298231,5.29,2724.3,2723.9,0.755]
[1739578298514,5.29,2724.3,2724.2,3.6708]
[1739578299526,5.29,2724.3,2724.2,4.4636]
[1739578300148,0.8219,2725.0,2724.2,0.7928]
[1739578300349,5.814,2725.4,2724.8,3.8100253]
[1739578300624,5.814,2725.4,2725.0,3.66968]
[1739578300789,5.814,2725.4,2724.9,3.66984]
[1739578300988,5.814,2725.4,2724.8,0.46028253]
[1739578301190,9.52912817,2725.4,2724.8,4.13017253]
[1739578301400,3.66953,2725.2,2724.7,0.7928]
[1739578301602,7.33911,2725.2,2724.6,3.67023]
[1739578301822,3.66953,2725.2,2724.6,3.67023]
[1739578302123,4.4835,2725.0,2724.4,7.55731703]
[1739578302299,0.0458738,2724.9,2724.2,3.67072]
[1739578302503,3.67013,2724.7,2724.2,1.3435577]
[1739578302705,4.48412,2724.5,2724.1,3.09402703]
[1739578302906,4.48412,2724.5,2724.0,6.67099]
[1739578303513,0.8137,2724.5,2724.0,6.67099]
[1739578303722,0.8137,2724.5,2724.1,3.67087]
[1739578304398,5.29,2725.0,2724.5,3.67027]
[1739578304614,5.29,2725.0,2724.6,3.67013]
[1739578304823,5.29,2725.0,2724.8,3.66998]
[1739578305008,5.29,2725.2,2725.0,3.66966]
[1739578305209,5.29,2725.6,2724.9,0.7928]
[1739578305525,5.29,2725.6,2725.2,3.66943]
[1739578305930,5.29,2725.6,2725.2,3.66937]
[1739578307041,5.29,2725.6,2725.3,3.66931]
[1739578307210,5.29,2725.6,2725.2,3.66937]
[1739578307610,8.95893,2725.6,2725.0,3.66961]
[1739578307821,8.95893,2725.6,2725.0,7.33922]
[1739578308106,5.29,2725.6,2725.0,3.66961]
[1739578308328,5.33586596,2725.6,2725.1,3.66951]
[1739578308515,5.29,2725.6,2725.1,3.66959]
[1739578308739,5.33586596,2725.6,2725.1,3.66949]
[1739578308947,3.66907,2725.5,2724.9,1.5484927]
[1739578309244,8.95891,2725.6,2725.1,3.66958]
[1739578310240,5.29,2725.6,2724.9,5.2182627]
[1739578310545,5.29,2725.6,2725.2,3.66934]
[1739578310728,4.48251,2725.7,2725.2,3.66934]
[1739578310936,0.8137,2725.7,2725.2,3.66934]
[1739578311134,4.48257,2725.7,2725.2,3.66934]
[1739578311310,4.52843326,2725.7,2725.2,3.66934]
[1739578311512,3.66891,2725.6,2725.0,3.66964]
[1739578311849,3.71477816,2725.6,2725.1,3.66958]
[1739578312728,3.66909,2725.5,2725.0,3.66964]
[1739578313846,8.95909,2725.5,2725.0,7.33929]
[1739578314442,5.29,2725.5,2725.2,3.66939]
[1739578314813,5.29,2725.5,2725.1,3.66956]
[1739578315245,5.29,2725.5,2725.1,7.33906]
[1739578315614,0.0662281,2725.4,2725.1,3.6695]
[1739578316455,0.0662281,2725.4,2725.2,3.66938]
[1739578316937,0.0662281,2725.4,2725.3,3.66932]
[1739578317309,0.0662281,2725.4,2725.2,3.66938]
[1739578320151,0.04586591,2725.6,2724.9,4.4255327]
[1739578320317,0.06387476,2725.5,2725.1,3.66957]
[1739578321854,3.73295476,2725.5,2725.1,3.66957]
[1739578322156,0.06387476,2725.5,2725.1,7.33906]
[1739578322550,3.66919,2725.4,2725.0,3.66971]
[1739578322742,3.66925,2725.4,2725.0,3.66971]
[1739578322931,0.06387476,2725.3,2725.0,3.66971]
[1739578323320,3.73325476,2725.3,2724.8,3.66996]
[1739578323627,0.06387476,2725.3,2724.9,3.66977]
[1739578323948,0.06387476,2725.3,2725.0,3.66964]
[1739578324121,3.66899,2725.6,2725.2,3.66936]
[1739578324320,0.0642424,2725.5,2725.2,3.66936]
[1739578324530,3.66925,2725.4,2725.0,3.66964]
[1739578324725,0.06423769,2725.3,2725.0,3.66964]
[1739578325542,0.06423769,2725.3,2724.7,4.59945585]
[1739578325854,3.66899,2725.6,2725.2,3.66944]
[1739578326057,6.1037,2725.7,2725.3,3.66931]
[1739578326259,9.77251,2725.7,2725.3,3.66931]
[1739578326552,9.77251,2725.7,2725.1,3.66949]
[1739578326756,9.77251,2725.7,2725.2,3.66943]
[1739578327332,5.29,2725.7,2725.5,3.66895]
[1739578327663,8.9588,2725.7,2725.2,8.072622]
[1739578327852,8.9588,2725.7,2725.3,3.6693]
[1739578328240,8.9588,2725.7,2725.4,3.66915]
[1739578328241,5.29,2725.7,2725.4,3.66915]
[1739578328653,5.29,2725.7,2725.5,3.66902]
[1739578328985,5.29,2725.7,2725.6,3.66891]
[1739578329698,5.29,2725.7,2725.4,0.81]
[1739578329849,5.29,2725.7,2725.3,3.66922]
[1739578330044,5.29,2725.7,2725.3,4.71236564]
[1739578330282,5.29,2725.7,2725.5,3.66903]
[1739578330461,0.06421884,2725.6,2725.5,3.66903]